bitfinex-derivatives/quotes_ETHF0:USTF0_20251107
["timestamp","ask_amount","ask_price","bid_price","bid_amount"]
[1762494758548,4.46271998,3364.7,3364.5,0.15]
[1762494760257,0.48182,3364.1,3363.9,0.00446142]
[1762494760655,1.25612022,3364.1,3363.9,0.00446142]
[1762494761062,1.25612022,3364.1,3364.0,0.1665]
[1762494761265,1.25612022,3364.1,3364.0,0.16888512]
[1762494761861,0.77430022,3364.1,3364.0,0.46288512]
[1762494762065,0.48181,3364.2,3364.1,0.294]
[1762494762558,1.25745257,3364.2,3364.0,0.16888512]
[1762494762756,0.77564257,3364.1,3364.0,0.16888512]
[1762494763263,0.77564257,3364.1,3364.0,0.00238512]
[1762494763666,3.98344257,3364.1,3363.5,0.1776]
[1762494763862,0.48189,3363.6,3363.5,0.1776]
[1762494764058,1.25753257,3363.6,3363.5,0.1776]
[1762494764556,1.25753257,3363.6,3363.5,0.18038515]
[1762494766559,1.25753257,3363.6,3363.5,0.47438515]
[1762494767064,1.25753257,3363.6,3363.5,0.18038515]
[1762494767368,1.25753257,3363.6,3363.5,0.47438515]
[1762494767867,0.48189,3363.6,3363.5,0.47438515]
[1762494768068,0.48631141,3363.9,3363.8,0.294]
[1762494768366,0.00446141,3363.9,3363.8,0.77586]
[1762494768565,0.48184,3364.1,3364.0,0.4605]
[1762494769262,0.48175,3364.6,3364.5,0.4605]
[1762494769764,0.48598,3365.1,3365.0,0.1665]
[1762494770067,1.2618276,3365.1,3365.0,0.1665]
[1762494770360,3.2078,3366.1,3365.6,0.294]
[1762494770664,3.2078,3366.1,3365.7,0.294]
[1762494771361,0.48441337,3365.8,3365.7,0.294]
[1762494773362,0.00282337,3365.8,3365.7,0.294]
[1762494773565,0.00282337,3365.8,3365.7,3.5018]
[1762494775965,0.48152,3366.4,3366.3,0.294]
[1762494776961,0.48407697,3366.4,3366.3,0.2974424]
[1762494778268,0.48407697,3366.4,3366.3,0.0034424]
[1762494778565,0.48865,3366.1,3366.0,0.1665]
[1762494778955,0.09610147,3367.2,3366.0,0.1665]
[1762494779158,1.47e-06,3367.2,3367.1,0.294]
[1762494780166,3.2078,3368.9,3367.1,4.20397566]
[1762494780368,3.2078,3369.4,3369.3,0.294]
[1762494780666,0.48131,3367.8,3367.7,3.2078]
[1762494781060,0.48134,3367.6,3367.4,0.00445473]
[1762494781268,0.48519342,3367.6,3367.4,0.00445473]
[1762494781660,0.48519342,3367.6,3367.5,0.294]
[1762494781866,0.48519342,3367.6,3367.4,0.00445473]
[1762494782066,0.48138,3367.3,3367.1,0.00297566]
[1762494782265,0.2885,3367.2,3367.1,0.00297566]
[1762494782467,0.48155,3366.1,3365.4,3.3743]
[1762494782665,0.48163,3365.6,3365.4,3.3743]
[1762494782860,0.48163,3365.6,3365.4,0.1665]
[1762494783364,0.48167,3365.3,3365.2,0.00445473]
[1762494783569,0.48167,3365.3,3365.2,0.00687398]
[1762494783768,0.77017,3365.3,3365.2,3.98e-06]
[1762494784360,0.2885,3365.3,3364.2,3.3743]
[1762494784667,0.48186,3364.0,3363.8,3.2078]
[1762494784869,0.1715,3364.8,3363.6,0.00445473]
[1762494784870,0.48188,3363.8,3363.6,0.00445473]
[1762494785361,0.00445473,3364.0,3363.9,0.4835]
[1762494785562,0.48188,3363.9,3363.6,0.17210313]
[1762494785765,0.48188,3363.8,3363.6,0.00820313]
[1762494786074,3.2078,3363.9,3363.6,0.17210313]
[1762494786369,2.12950254,3366.3,3363.6,0.17210313]
[1762494786370,0.48171,3365.0,3364.2,0.1639]
[1762494786567,3.2078,3365.3,3364.6,3.2078]
[1762494786870,0.4818,3364.4,3364.2,3.2078]
[1762494787167,0.4818,3364.4,3364.3,0.4835]
[1762494787366,0.48459981,3364.4,3364.3,0.4835]
[1762494787869,0.48459981,3364.4,3364.2,3.2078]
[1762494788366,0.48182,3364.2,3363.8,3.2078]
[1762494788667,0.48183,3364.2,3364.1,0.4835]
[1762494788969,0.48182,3364.3,3364.1,0.4835]
[1762494790168,0.00279981,3364.4,3364.1,0.96533]
[1762494790469,0.48458981,3364.4,3364.3,3.2078]
[1762494791070,0.48189,3363.8,3363.6,0.00820313]
[1762494791272,0.48189,3363.8,3363.7,3.2078]
[1762494792772,0.48189,3363.8,3363.6,0.00820313]
[1762494798174,0.48184,3364.1,3363.8,0.96537]
[1762494798471,3.2078,3364.2,3364.1,0.96533]
[1762494798661,0.00279981,3364.4,3364.3,0.4835]
[1762494801572,0.00279981,3364.4,3364.3,6.4283]
[1762494802766,0.00279981,3364.4,3364.3,0.4835]
[1762494803874,0.00279981,3364.4,3364.3,6.4283]
[1762494804076,0.00279981,3364.4,3364.3,0.4835]
[1762494804578,0.00443243,3364.6,3364.5,0.6474]
[1762494804781,0.00443243,3364.6,3364.5,3.8552]
[1762494805381,0.00657887,3364.6,3364.5,4.33697]
[1762494806274,8.87e-06,3364.6,3364.5,4.33697]
[1762494806476,3.2078,3365.6,3365.5,0.96513]
[1762494807376,3.20999484,3365.6,3365.5,0.96513]
[1762494807580,3.20999484,3365.6,3365.5,1.12903]
[1762494807786,0.00219484,3365.6,3365.5,4.33683]
[1762494811998,0.00219484,3365.6,3365.5,4.17293]
[1762494812198,0.00219484,3365.6,3365.5,4.33683]
[1762494812396,0.00219484,3365.6,3365.5,18.27923]
[1762494812593,0.48148,3366.6,3366.4,0.48149]
[1762494812895,0.95521,3366.4,3366.3,0.48151]
[1762494813092,0.4737,3366.8,3366.2,0.00445473]
[1762494813494,0.95516,3366.7,3366.6,0.48145]
[1762494814286,0.4737,3366.7,3366.6,0.48145]
[1762494814494,0.95515,3366.7,3366.6,0.48145]
[1762494814699,0.4737,3366.7,3366.6,0.48145]
[1762494814891,0.48148,3366.6,3366.5,0.48148]
[1762494815094,0.4457,3366.6,3366.2,0.00813118]
[1762494815598,0.48148,3366.5,3366.2,0.00813118]
[1762494815994,0.74698,3366.5,3366.2,0.00813118]
[1762494816189,0.4457,3366.3,3366.2,0.48966118]
[1762494817303,0.92721,3366.3,3366.2,0.00813118]
[1762494817496,4.13501,3366.3,3366.2,0.00813118]
[1762494818299,10.09121,3366.3,3366.2,0.00813118]
[1762494818504,0.92721,3366.3,3366.2,0.00813118]
[1762494818806,13.29901,3366.3,3366.2,0.00813118]
[1762494819500,13.30401,3366.3,3366.2,0.00813118]
[1762494821693,0.92731,3365.6,3365.5,3.2078]
[1762494822298,0.4457,3365.6,3365.5,3.68943]
[1762494822800,0.4457,3365.6,3365.5,3.69316146]
[1762494823401,0.92731,3365.6,3365.5,3.21153146]
[1762494824603,10.07831,3365.6,3365.5,0.00373146]
[1762494824999,0.90135,3365.3,3365.2,0.00445473]
[1762494826106,0.90135,3365.3,3365.2,0.00783721]
[1762494832100,7.90735,3365.3,3365.2,0.48950721]
[1762494832596,7.90735,3365.3,3365.2,0.00783721]
[1762494833401,0.90135,3365.3,3365.2,0.00783721]
[1762494833599,10.01835,3365.3,3365.2,0.00783721]
[1762494833795,10.01835,3365.3,3365.2,3.721e-05]
[1762494836804,0.4197,3365.3,3365.2,0.48170721]
[1762494837001,9.5307,3365.3,3365.2,0.48170721]
[1762494837909,9.59265,3365.3,3365.2,3.721e-05]
[1762494838308,0.48165,3365.3,3365.2,3.721e-05]
[1762494838507,9.58565,3365.3,3365.2,3.721e-05]
[1762494840701,9.58065,3365.3,3365.2,3.721e-05]
[1762494841111,9.57265,3365.3,3365.2,3.721e-05]
[1762494841306,9.57165,3365.3,3365.2,3.721e-05]
[1762494841611,0.3909,3363.9,3363.8,3.68967]
[1762494841807,0.3909,3363.9,3363.8,3.2078]
[1762494842112,0.87279,3363.7,3363.6,0.4819]
[1762494842410,0.87525714,3363.7,3363.6,0.4844966]
[1762494843306,0.00246714,3363.7,3363.6,0.4844966]
[1762494843509,3.27746714,3363.7,3363.6,0.9213966]
[1762494844212,0.00445473,3364.0,3363.9,0.91875]
[1762494844417,3.28745473,3364.0,3363.9,0.91875]
[1762494844613,3.28745473,3364.0,3363.9,4.12655]
[1762494845219,3.29022493,3364.0,3363.9,4.12655]
[1762494845620,0.00722493,3364.0,3363.9,4.12655]
[1762494849124,0.72571,3365.4,3365.3,0.48165]
[1762494849428,0.37871,3365.4,3365.3,0.48165]
[1762494849722,0.37871,3365.4,3365.3,0.89755]
[1762494849923,0.38171961,3365.4,3365.3,0.89755]
[1762494851526,0.38171961,3365.4,3365.3,4.10535]
[1762494851916,0.00445473,3365.7,3365.6,0.89751]
[1762494852820,0.00738383,3365.7,3365.6,0.89751]
[1762494856023,0.3544,3366.5,3366.0,0.2603]
[1762494856232,0.3544,3366.5,3366.0,3.4681]
[1762494856827,0.83589,3366.5,3366.4,0.48149]
[1762494857026,0.83946837,3366.5,3366.4,0.48445928]
[1762494857327,0.3544,3365.4,3365.3,0.48165]
[1762494857930,0.48162,3365.5,3365.4,0.48164]
[1762494858330,0.48162,3365.5,3365.4,0.48394913]
[1762494858630,3.2078,3365.9,3365.5,0.2603]
[1762494858828,4.71258,3365.8,3365.7,0.48159]
[1762494859023,5.06698,3365.8,3365.7,0.48159]
[1762494859625,0.83598,3365.8,3365.7,0.48159]
[1762494860334,0.48161,3365.6,3365.5,0.74191]
[1762494860633,0.836,3365.7,3365.6,0.48159]
[1762494860925,8.1998,3365.9,3365.8,0.48158]
[1762494860926,3.2078,3365.9,3365.8,0.48158]
[1762494861128,3.2078,3366.3,3366.2,0.48152]
[1762494861325,0.3544,3366.4,3366.3,0.48149]
[1762494861927,0.83589,3366.4,3366.3,0.48149]
[1762494862130,0.00357837,3366.5,3366.0,0.2603]
[1762494862625,0.48154,3366.1,3366.0,0.74185]
[1762494862828,0.3544,3366.3,3366.2,0.48152]
[1762494863029,0.83591,3366.3,3366.2,0.48152]
[1762494863526,0.00357837,3366.5,3366.4,0.89739]
[1762494865234,0.00357837,3366.5,3366.4,0.48149]
[1762494865532,0.48505837,3366.5,3366.4,0.48149]
[1762494865924,0.3544,3366.3,3366.2,3.68932]
[1762494866326,0.48505837,3366.5,3366.4,0.48149]
[1762494866531,0.83945837,3366.5,3366.4,0.48149]
[1762494866933,0.00357837,3366.5,3366.2,3.68931]
[1762494867135,0.48151,3366.3,3366.2,3.68931]
[1762494867925,0.48151,3366.3,3366.2,0.48151]
[1762494868329,0.3544,3366.2,3366.1,0.48153]
[1762494869039,0.00357837,3366.5,3366.2,0.48151]
[1762494869438,0.3544,3366.3,3366.2,0.48151]
[1762494869634,0.3544,3366.1,3366.0,0.74184]
[1762494869833,0.83594,3366.1,3366.0,0.2603]
[1762494870030,0.48157,3365.9,3365.8,3.2078]
[1762494870235,0.13897837,3366.5,3365.5,0.2603]
[1762494870236,0.83601,3365.6,3365.5,0.2603]
[1762494871337,0.83601,3365.6,3365.5,0.74192]
[1762494871638,0.83601,3365.6,3365.5,0.2603]
[1762494871938,0.83601,3365.6,3365.4,3.21010913]
[1762494871939,0.83602,3365.5,3365.4,3.21010913]
[1762494872238,0.83602,3365.5,3365.4,3.69174913]
[1762494872738,0.48162,3365.5,3365.4,3.69174913]
[1762494874039,0.83602,3365.5,3365.4,3.21010913]
[1762494874243,0.48162,3365.5,3365.4,3.21010913]
[1762494874539,0.83602,3365.5,3365.4,3.21010913]
[1762494874735,0.83602,3365.5,3365.4,0.00230913]
[1762494877531,0.83602,3365.5,3365.4,0.48394913]
[1762494877735,0.83602,3365.5,3365.4,0.00230913]
[1762494881644,8.84602,3365.5,3365.4,0.00230913]
[1762494882544,8.84602,3365.5,3365.4,9.13e-06]
[1762494882742,8.84602,3365.5,3364.5,0.2603]
[1762494882743,0.71276,3364.6,3364.5,0.2603]
[1762494882947,0.231,3364.3,3363.9,0.668]
[1762494883443,0.48182,3364.2,3364.1,0.48183]
[1762494883641,0.4819,3363.6,3363.5,0.2603]
[1762494883841,0.00287581,3363.6,3363.5,1.1120004]
[1762494884252,0.00287581,3363.6,3363.5,0.6300904]
[1762494885349,0.00287581,3363.6,3363.5,1.1120104]
[1762494885550,0.48477581,3363.6,3363.5,1.1120104]
[1762494886153,0.48477581,3363.6,3363.5,0.6300904]
[1762494887245,0.00287581,3363.6,3363.5,1.1120104]
[1762494887544,9.04087581,3363.6,3363.5,1.1120104]
[1762494888852,0.48477581,3363.6,3363.5,0.6300904]
[1762494889150,0.48477581,3363.6,3363.5,1.1120104]
[1762494889151,0.00287581,3363.6,3363.5,1.1120104]
[1762494889545,0.48477581,3363.6,3363.5,0.6300904]
[1762494889749,0.71577581,3363.6,3363.5,0.0027904]
[1762494889945,0.71577581,3363.6,3363.5,0.2232904]
[1762494890153,7.31477581,3363.6,3363.5,0.2232904]
[1762494892451,6.60187581,3363.6,3363.5,1.0722104]
[1762494893048,7.31477581,3363.6,3363.5,0.7052104]
[1762494893552,7.31477581,3363.6,3363.5,0.2232904]
[1762494893752,0.00287581,3363.6,3363.5,9.0722104]
[1762494894057,3.2078,3364.3,3364.1,0.84882]
[1762494894058,0.48182,3364.2,3364.1,0.84882]
[1762494894651,0.2338,3364.2,3364.0,0.70234]
[1762494894847,0.71562,3364.2,3364.0,0.2205]
[1762494895045,0.71795483,3364.2,3364.0,0.2205]
[1762494896553,0.71795483,3364.2,3364.1,0.48183]
[1762494897558,0.00233483,3364.2,3364.1,0.84883]
[1762494897856,0.48415483,3364.2,3364.1,0.84883]
[1762494898047,0.71795483,3364.2,3364.1,0.48183]
[1762494898450,0.00233483,3364.2,3364.1,0.84883]
[1762494900159,0.48415483,3364.2,3364.1,0.84883]
[1762494900356,0.00233483,3364.2,3364.1,0.84883]
[1762494901161,0.48415483,3364.2,3364.1,0.84883]
[1762494901352,0.48415483,3364.2,3364.1,0.367]
[1762494901552,0.48415483,3364.2,3364.1,0.84883]
[1762494901752,0.71563,3364.1,3364.0,0.70235]
[1762494901960,0.71563,3364.1,3364.0,1.06935]
[1762494902460,0.00233483,3364.2,3364.1,0.84883]
[1762494903455,3.483e-05,3364.2,3364.1,8.84883]
[1762494903756,0.00445473,3364.5,3364.4,0.84879]
[1762494904157,0.48179,3364.4,3364.3,3.68959]
[1762494904359,0.71799,3364.4,3364.3,3.2078]
[1762494904556,0.71803,3364.1,3364.0,0.2205]
[1762494905660,0.2362,3364.1,3364.0,1.04294]
[1762494906063,0.48182,3364.2,3364.1,0.48183]
[1762494906960,0.6199,3364.3,3364.2,0.4818]
[1762494907264,0.4849919,3364.4,3364.3,0.4818]
[1762494907564,0.0031919,3364.4,3364.3,0.4818]
[1762494907766,0.0031919,3364.4,3364.3,0.8224]
[1762494908160,0.0031919,3364.4,3364.3,4.0302]
[1762494909965,0.0031919,3364.4,3364.3,0.8224]
[1762494910569,0.0031919,3364.4,3364.3,4.0302]
[1762494911862,0.4849819,3364.4,3364.3,4.0302]
[1762494912062,0.0031919,3364.4,3364.3,4.0302]
[1762494916265,0.00445473,3364.5,3364.4,0.82239]
[1762494917269,0.00679242,3364.5,3364.4,0.82239]
[1762494918967,0.48166,3365.3,3365.2,0.48167]
[1762494919166,0.48166,3365.3,3365.2,0.82227]
[1762494919565,3.68944,3365.5,3365.4,0.82224]
[1762494920072,3.69161129,3365.5,3365.4,0.3406]
[1762494920369,3.69161129,3365.5,3365.4,0.82224]
[1762494921166,0.00217129,3365.5,3365.4,0.82224]
[1762494922364,0.62977,3365.2,3365.1,0.00445473]
[1762494922568,0.1481,3364.1,3364.0,0.2205]
[1762494922769,0.1481,3363.9,3363.4,3.2078]
[1762494922968,0.48188,3363.8,3363.4,3.2078]
[1762494923169,0.48189,3363.7,3363.4,3.68972]
[1762494923376,0.48189,3363.7,3363.5,0.7052004]
[1762494923575,0.48189,3363.7,3363.5,0.2232904]
[1762494924980,0.1481,3363.6,3363.5,0.2387904]
[1762494927369,0.48189,3363.7,3363.5,0.2387904]
[1762494928574,3.21225473,3363.9,3363.5,0.2387904]
[1762494928770,12.70211473,3363.9,3363.8,0.3406]
[1762494929977,0.4819,3363.6,3363.5,0.5793904]
[1762494930576,0.4819,3363.6,3363.5,0.2387904]
[1762494930785,0.63,3363.6,3363.5,0.2387904]
[1762494932281,0.4819,3363.6,3363.5,1.0613104]
[1762494934081,3.21225473,3363.9,3363.8,0.3406]
[1762494934281,12.22125473,3363.9,3363.8,0.3406]
[1762494934883,0.4819,3363.6,3363.5,0.5361904]
[1762494935383,0.48189,3363.7,3363.6,0.77929]
[1762494935582,0.48189,3363.7,3363.6,0.2974]
[1762494936081,0.48189,3363.7,3363.6,0.7793]
[1762494936280,0.48189,3363.7,3363.6,0.2974]
[1762494936481,9.49089,3363.7,3363.6,0.2974]
[1762494936684,3.2078,3363.8,3363.7,0.2974]
[1762494936870,12.2168,3363.8,3363.7,0.2974]
[1762494937574,3.68968,3363.8,3363.7,0.77929]
[1762494937771,9.51767,3363.8,3363.7,0.77929]
[1762494938177,3.68967,3363.8,3363.7,0.2974]
[1762494939276,3.68967,3363.8,3363.7,0.77929]
[1762494940971,3.68967,3363.8,3363.7,0.2974]
[1762494941176,0.48187,3363.8,3363.7,0.2974]
[1762494941577,0.51457,3363.8,3363.7,0.2974]
[1762494941782,0.4819,3363.6,3363.5,0.5472904]
[1762494942080,0.5146,3363.6,3363.5,0.2387904]
[1762494943785,0.5146,3363.6,3363.5,0.0027904]
[1762494944079,0.5146,3363.6,3363.3,0.00445473]
[1762494944080,0.0299,3362.6,3362.2,3.2078]
[1762494944280,9.52094,3362.6,3362.5,0.5445]
[1762494944683,9.52094,3362.6,3362.5,0.236]
[1762494945078,9.52398697,3362.6,3362.5,0.23978125]
[1762494945284,0.51498697,3362.6,3362.5,0.19398125]
[1762494945478,9.52398697,3362.6,3362.5,0.19398125]
[1762494945678,0.51498697,3362.6,3362.5,0.50248125]
[1762494945879,9.52398697,3362.6,3362.5,0.50248125]
[1762494946079,9.52398697,3362.6,3362.5,0.19398125]
[1762494946280,0.51498697,3362.6,3362.5,0.19398125]
[1762494946480,9.52398697,3362.6,3362.5,0.19398125]
[1762494949179,0.00304697,3362.6,3362.5,0.98454125]
[1762494949585,4.39509697,3362.6,3362.5,0.98454125]
[1762494952192,0.48509697,3362.6,3362.5,0.98454125]
[1762494952383,8.13004697,3362.6,3362.5,0.98454125]
[1762494952584,8.61209697,3362.6,3362.5,0.98454125]
[1762494954286,0.00304697,3362.6,3362.5,0.98454125]
[1762494956590,0.48509697,3362.6,3362.5,0.98454125]
[1762494957493,0.00304697,3362.6,3362.5,0.98454125]
[1762494958888,0.51498697,3362.6,3362.5,0.00378125]
[1762494959488,0.51498697,3362.6,3362.5,0.19398125]
[1762494962386,0.51498697,3362.6,3362.5,0.00378125]
[1762494962997,0.51498697,3362.6,3362.5,0.19398125]
[1762494963697,0.48508697,3362.6,3362.5,0.19398125]
[1762494963893,0.48508697,3362.6,3362.5,0.50248125]
[1762494964095,6.24808697,3362.6,3362.5,0.50248125]
[1762494964697,0.48508697,3362.6,3362.5,0.50248125]
[1762494964898,9.49408697,3362.6,3362.5,0.50248125]
[1762494965402,9.52398697,3362.6,3362.5,0.19398125]
[1762494966199,9.52298697,3362.6,3362.5,0.19398125]
[1762494968804,0.48508697,3362.6,3362.5,0.19398125]
[1762494968994,9.49308697,3362.6,3362.5,0.46528125]
[1762494969597,0.00304697,3362.6,3362.5,0.94733125]
[1762494969798,4.697e-05,3362.6,3362.5,0.94733125]
[1762494970004,0.48195,3363.2,3363.1,0.2713]
[1762494970303,0.48195,3363.2,3363.0,0.66938]
[1762494970304,0.48197,3363.1,3363.0,0.1874]
[1762494970899,0.48501237,3363.1,3363.0,0.1874]
[1762494972501,0.48204,3362.6,3362.5,0.46528125]
[1762494972703,0.48204,3362.6,3362.5,0.19398125]
[1762494974008,0.48204,3362.6,3362.5,0.46528125]
[1762494974307,0.48204,3362.6,3362.5,0.94733125]
[1762494974702,3.6898,3362.9,3362.5,0.19398125]
[1762494974900,0.00304237,3363.1,3363.0,0.94068]
[1762494975105,3.68968,3363.7,3363.6,0.7532]
[1762494975305,12.2138,3363.7,3363.6,0.7532]
[1762494975505,12.69568,3363.7,3363.6,0.2713]
[1762494975806,3.68968,3363.7,3363.6,0.7532]
[1762494976011,3.2078,3363.7,3363.6,0.7532]
[1762494976200,11.27518796,3363.7,3363.6,0.2713]
[1762494976404,12.69918796,3363.7,3363.6,0.2713]
[1762494976605,3.69318796,3363.7,3363.6,0.2713]
[1762494976806,3.69318796,3363.7,3363.6,0.7532]
[1762494977119,0.00445473,3363.9,3363.8,0.75317]
[1762494978202,0.00819339,3363.9,3363.8,0.75317]
[1762494981120,0.00819339,3363.9,3363.8,0.2713]
[1762494983121,0.00819339,3363.9,3363.8,0.75317]
[1762494983811,0.49004339,3363.9,3363.8,0.75317]
[1762494984224,0.78524339,3363.9,3363.8,0.48187]
[1762494984816,0.77707,3363.8,3363.7,3.2078]
[1762494985522,0.2952,3363.4,3363.3,3.2078]
[1762494985714,0.77712,3363.4,3363.3,3.68974]
[1762494986919,0.77712,3363.4,3363.3,3.2078]
[1762494987117,0.77712,3363.4,3363.3,3.68974]
[1762494987314,0.77712,3363.4,3363.3,3.96104]
[1762494987722,0.77712,3363.4,3363.3,0.75324]
[1762494989923,0.77714,3363.3,3363.2,3.2078]
[1762494990112,0.2952,3363.3,3363.2,3.96106]
[1762494991623,0.77714,3363.3,3363.2,3.96106]
[1762494991919,0.00819339,3363.9,3363.4,0.48193]
[1762494992223,0.48191,3363.5,3363.4,0.75323]
[1762494992822,0.4819,3363.6,3363.5,0.8854]
[1762494994418,0.48188,3363.8,3363.7,0.75317]
[1762494994623,0.77708,3363.8,3363.7,0.75317]
[1762494997022,0.77708,3363.8,3363.5,0.1322]
[1762494997023,0.2778,3363.3,3363.2,3.2078]
[1762494997712,0.75976,3363.1,3363.0,0.48198]
[1762494998612,0.75976,3363.1,3363.0,0.74898]
[1762494998825,0.48196,3363.2,3363.1,0.48196]
[1762494999222,0.48196,3363.2,3363.1,0.73576]
[1762495000027,0.2677,3363.3,3363.0,0.131]
[1762495000221,0.2677,3363.3,3363.2,0.73575]
[1762495000422,0.74963,3363.3,3363.2,0.73575]
[1762495000925,0.74963,3363.3,3363.2,0.2538]
[1762495001721,0.74965,3363.2,3363.1,3.68976]
[1762495001921,0.2677,3363.2,3363.1,3.94356]
[1762495002229,0.74963,3363.3,3363.2,0.2538]
[1762495002426,0.48199,3363.0,3362.9,0.48199]
[1762495002622,0.48196,3363.2,3363.1,0.48196]
[1762495003021,0.48196,3363.2,3363.1,0.73576]
[1762495003321,0.1431,3363.5,3363.0,0.1354]
[1762495003826,0.48193,3363.4,3363.3,0.73572]
[1762495004020,0.74963,3363.4,3363.3,0.73572]
[1762495006130,0.48193,3363.4,3363.3,0.73572]
[1762495008335,0.74961,3363.5,3363.4,0.73571]
[1762495009525,0.48191,3363.5,3363.4,0.73571]
[1762495010127,0.74965,3363.2,3363.1,3.2078]
[1762495010430,0.74965,3363.2,3363.1,3.68976]
[1762495010634,0.74965,3363.2,3363.1,3.94356]
[1762495010930,0.74965,3363.2,3363.1,3.4616]
[1762495012120,0.74965,3363.2,3363.1,3.2078]
[1762495012623,0.74965,3363.2,3363.1,3.68976]
[1762495012828,0.74965,3363.2,3363.1,3.94356]
[1762495013532,0.48194,3363.4,3363.3,0.2538]
[1762495014632,0.48194,3363.4,3363.3,0.73573]
[1762495014832,0.48194,3363.4,3363.3,0.2538]
[1762495015033,0.74964,3363.4,3363.3,0.2538]
[1762495015832,0.48195,3363.2,3363.1,3.94356]
[1762495016026,0.74965,3363.2,3363.1,3.94356]
[1762495016228,0.74965,3363.2,3363.1,3.4616]
[1762495016932,0.74965,3363.2,3363.1,3.94356]
[1762495017135,0.48195,3363.2,3363.1,3.94356]
[1762495017836,0.48192,3363.4,3363.3,0.48193]
[1762495018032,0.48192,3363.4,3363.3,0.73573]
[1762495018826,0.48192,3363.4,3363.3,0.2538]
[1762495019837,0.74962,3363.4,3363.3,0.2538]
[1762495020525,0.48192,3363.4,3363.3,0.2538]
[1762495021437,0.74965,3363.2,3363.1,3.2078]
[1762495021638,9.74165,3363.2,3363.1,3.2078]
[1762495024128,9.74165,3363.2,3362.5,0.19398125]
[1762495024129,0.74971,3362.8,3362.7,3.2078]
[1762495024637,0.74971,3362.8,3362.7,3.68982]
[1762495025835,0.64398,3363.0,3362.8,0.2463]
[1762495026029,0.48191,3363.5,3363.4,0.2463]
[1762495026233,9.76500758,3363.5,3363.4,0.2463]
[1762495026426,0.73082,3363.4,3363.3,0.72822]
[1762495026630,9.72082,3363.4,3363.3,0.72822]
[1762495027027,0.73082,3363.4,3363.3,0.72822]
[1762495027234,1.80646928,3363.4,3363.3,0.2463]
[1762495028327,0.48193,3363.3,3363.2,0.48195]
[1762495029243,0.48193,3363.3,3363.2,0.72825]
[1762495029839,0.73083,3363.3,3363.2,0.2463]
[1762495030740,9.1062,3363.5,3363.2,0.72824]
[1762495030946,0.73083,3363.3,3363.2,0.2463]
[1762495033236,0.73083,3363.3,3363.2,0.72825]
[1762495033433,1.07294466,3363.9,3363.8,0.72816]
[1762495033434,0.00819339,3363.9,3363.8,0.72816]
[1762495036842,0.00819339,3363.9,3363.8,8.72816]
[1762495037045,0.48173,3364.7,3364.6,0.72804]
[1762495037635,3.2078,3364.8,3364.7,0.2463]
[1762495037942,0.48171,3364.9,3364.7,0.2463]
[1762495037943,0.48171,3364.9,3364.8,0.2463]
[1762495038242,0.48169,3365.0,3364.9,0.2463]
[1762495038450,0.48553429,3365.0,3364.9,0.24976678]
[1762495039036,0.73443429,3365.0,3364.9,0.24976678]
[1762495039836,0.25274429,3365.0,3364.9,0.24976678]
[1762495040443,0.00384429,3365.0,3364.9,0.24976678]
[1762495041551,0.25274429,3365.0,3364.9,0.24976678]
[1762495042842,0.00384429,3365.0,3364.9,0.24976678]
[1762495045942,0.00384429,3365.0,3364.9,0.73147678]
[1762495054061,4.429e-05,3365.0,3364.9,0.73147678]
[1762495054264,0.48162,3365.5,3365.4,0.72793]
[1762495055061,0.48162,3365.5,3365.2,3.2078]
[1762495055062,3.3657,3366.0,3365.7,0.2442]
[1762495055271,0.48158,3365.8,3365.7,0.72579]
[1762495056564,3.32587284,3366.0,3365.5,0.48161]
[1762495056766,0.2373,3365.6,3365.5,0.48161]
[1762495056967,3.32587284,3366.0,3365.6,0.4816]
[1762495057667,0.11807284,3366.0,3365.6,0.4816]
[1762495057864,0.4816,3365.6,3365.5,0.3944]
[1762495058065,0.48159,3365.8,3365.7,0.2442]
[1762495059668,0.73029,3365.8,3365.7,0.2442]
[1762495059868,0.48162,3365.5,3365.4,3.2078]
[1762495060071,0.73032,3365.5,3365.4,3.2078]
[1762495060271,0.73032,3365.5,3365.4,3.4432]
[1762495060571,0.48161,3365.6,3365.5,0.71702]
[1762495060760,0.48161,3365.6,3365.5,0.86222]
[1762495061266,0.11797284,3366.0,3365.5,0.86222]
[1762495061267,0.48159,3365.7,3365.6,0.717]
[1762495061458,0.11797284,3366.0,3365.7,0.48158]
[1762495061866,0.4816,3365.7,3365.6,0.717]
[1762495064870,0.4816,3365.6,3365.5,0.62682]
[1762495065171,0.2487,3365.7,3365.6,0.4816]
[1762495065372,0.2487,3365.7,3365.6,0.717]
[1762495065667,0.11797284,3366.0,3365.7,0.2354]
[1762495065869,0.00347284,3366.0,3365.9,0.71696]
[1762495066175,0.48502284,3366.0,3365.9,0.71696]
[1762495067975,0.00347284,3366.0,3365.9,0.71696]
[1762495068163,0.48502284,3366.0,3365.9,0.71696]
[1762495070372,0.00347284,3366.0,3365.9,0.71696]
[1762495070575,0.48502284,3366.0,3365.9,0.71696]
[1762495073374,0.00347284,3366.0,3365.9,0.71696]
[1762495073577,0.73033,3365.6,3365.5,0.48161]
[1762495073774,0.73032,3365.5,3365.4,3.2078]
[1762495073974,0.73032,3365.5,3365.4,3.4432]
[1762495074668,0.73032,3365.5,3365.4,3.92483]
[1762495074871,0.2487,3365.5,3365.4,3.92483]
[1762495075078,0.48162,3365.6,3365.5,0.71702]
[1762495075283,0.48162,3365.6,3365.5,0.86222]
[1762495076979,0.48162,3365.6,3365.5,0.3806]
[1762495077177,0.48162,3365.5,3365.4,3.4432]
[1762495077480,0.11797284,3366.0,3365.6,0.2354]
[1762495077682,0.48503284,3366.0,3365.9,0.2354]
[1762495078182,0.00347284,3366.0,3365.9,0.71696]
[1762495078779,0.48502284,3366.0,3365.9,0.71696]
[1762495079075,0.73372284,3366.0,3365.9,0.71696]
[1762495081185,0.73372284,3366.0,3365.9,0.2354]
[1762495081387,0.73026,3365.9,3365.8,3.68937]
[1762495081682,0.73026,3365.9,3365.8,3.92477]